bitfinex-derivatives/quotes_SOLF0:USTF0_20240816
["timestamp","ask_amount","ask_price","bid_price","bid_amount"]
[1723786321084,0.05306933,142.78,142.75,31.35934393]
[1723786321269,0.05306933,142.78,142.75,26.99934393]
[1723786321583,0.05306933,142.78,142.75,0.04934393]
[1723786329291,0.05306933,142.78,142.75,26.99934393]
[1723786330293,0.05306933,142.78,142.76,2.4512]
[1723786331193,0.05306933,142.78,142.75,29.45074393]
[1723786331586,0.05306933,142.78,142.75,26.99934393]
[1723786332390,0.05306933,142.78,142.75,29.45074393]
[1723786333993,0.05306933,142.78,142.75,0.04934393]
[1723786335290,4.63306933,142.78,142.75,0.04934393]
[1723786335790,28.2064,142.77,142.66,26.95]
[1723786335991,26.95,142.75,142.66,26.95]
[1723786336292,4.58,142.74,142.66,26.95]
[1723786336790,8.13540479,142.74,142.66,26.95]
[1723786336987,0.05322215,142.71,142.69,0.05346268]
[1723786337992,0.05322215,142.71,142.7,26.95]
[1723786338187,0.05322215,142.71,142.7,29.4023]
[1723786339298,0.05322215,142.71,142.7,26.95]
[1723786340299,0.05322215,142.71,142.69,0.05346268]
[1723786342597,0.05322215,142.71,142.69,2.50596268]
[1723786342900,0.05322215,142.71,142.7,26.95]
[1723786343292,26.95,142.82,142.7,26.95]
[1723786343601,4.58,142.81,142.73,26.95]
[1723786343794,3.46391426,142.8,142.73,26.95]
[1723786344196,4.58,142.81,142.73,29.4018]
[1723786344698,8.10452487,142.81,142.73,29.4018]
[1723786344992,0.04457267,142.78,142.76,0.04786265]
[1723786382827,0.04457267,142.78,142.76,10.80786265]
[1723786383723,0.04457267,142.78,142.76,13.25916265]
[1723786384634,0.04457267,142.78,142.76,0.04786265]
[1723786386236,0.04457267,142.78,142.76,10.80786265]
[1723786386626,0.04457267,142.78,142.76,0.04786265]
[1723786389233,0.04457267,142.78,142.76,10.80786265]
[1723786397947,0.04457267,142.78,142.77,10.76]
[1723786398138,3.9306,142.86,142.77,10.76]
[1723786398344,7.94963068,142.85,142.81,10.76]
[1723786399242,0.04500942,142.84,142.82,0.04999338]
[1723786401241,10.76,142.83,142.82,0.04999338]
[1723786403449,10.76,142.83,142.76,10.76]
[1723786403650,10.76,142.81,142.74,10.76]
[1723786403956,10.76,142.8,142.74,10.76]
[1723786404658,0.05029186,142.78,142.76,0.04843386]
[1723786416555,14.27747908,142.77,142.76,0.04843386]
[1723786416863,10.76,142.77,142.76,0.04843386]
[1723786417063,10.81029186,142.78,142.76,0.04843386]
[1723786417258,3.53919624,142.77,142.76,0.04843386]
[1723786418553,10.81029186,142.78,142.76,0.04843386]
[1723786421667,10.76,142.77,142.68,5.6993]
[1723786421866,10.76,142.77,142.68,16.4593]
[1723786421867,10.76,142.75,142.68,16.4593]
[1723786422166,10.76,142.75,142.68,12.0993]
[1723786422765,0.04917667,142.73,142.7,0.0475658]
[1723786423469,15.12,142.72,142.7,0.0475658]
[1723786424070,4.36,142.71,142.7,0.0475658]
[1723786425260,15.12,142.71,142.7,0.0475658]
[1723786425473,15.12,142.71,142.64,10.76]
[1723786425474,15.12,142.71,142.63,10.76]
[1723786425670,10.76,142.69,142.63,10.76]
[1723786426369,10.76,142.67,142.61,10.76]
[1723786426668,4.36,142.66,142.65,0.04786214]
[1723786428366,0.04530078,142.67,142.65,10.80786214]
[1723786428764,0.04530078,142.67,142.65,13.26096214]
[1723786433377,0.04530078,142.67,142.65,10.80786214]
[1723786435378,0.04530078,142.67,142.65,0.04786214]
[1723786439076,0.04530078,142.67,142.65,10.80786214]
[1723786439376,1.2394,142.73,142.65,10.80786214]
[1723786439377,4.36,142.73,142.65,10.80786214]
[1723786439581,4.36,142.73,142.68,10.76]
[1723786439974,4.36,142.73,142.65,10.76]
[1723786439975,10.76,142.72,142.65,10.76]
[1723786440477,10.76,142.72,142.67,0.04957197]
[1723786440680,0.0513467,142.7,142.67,0.04957197]
[1723786447674,0.0513467,142.7,142.67,10.80957197]
[1723786448784,0.0513467,142.7,142.67,0.04957197]
[1723786453794,0.0513467,142.7,142.67,10.80957197]
[1723786454997,0.0513467,142.7,142.67,0.04957197]
[1723786456299,0.0513467,142.7,142.67,2.50237197]
[1723786456904,0.0513467,142.7,142.67,0.04957197]
[1723786460198,10.76,142.72,142.67,0.04957197]
[1723786460199,4.8986,142.88,142.69,10.76]
[1723786460503,4.8986,142.88,142.72,10.76]
[1723786460504,11.9951,142.81,142.72,10.76]
[1723786460700,11.9951,142.81,142.74,10.76]
[1723786460903,11.9951,142.81,142.75,4.34]
[1723786461502,0.0499167,142.79,142.77,0.05186212]
[1723786463303,0.0499167,142.79,142.78,4.34]
[1723786464514,0.0499167,142.79,142.77,0.05186212]
[1723786466811,0.0499167,142.79,142.77,10.81186212]
[1723786468809,0.0499167,142.79,142.78,2.4509]
[1723786471912,0.0499167,142.79,142.78,6.7909]
[1723786472617,0.0499167,142.79,142.78,4.34]
[1723786473210,0.0499167,142.79,142.78,6.7909]
[1723786475617,0.0499167,142.79,142.77,2.50296212]
[1723786475814,0.0499167,142.79,142.78,4.34]
[1723786476918,0.0499167,142.79,142.78,6.7909]
[1723786480316,0.0499167,142.79,142.78,6.9109]
[1723786486017,0.0499167,142.79,142.77,0.05186212]
[1723786496535,10.8099167,142.79,142.7,4.46]
[1723786496740,10.76,142.79,142.72,10.76]
[1723786496937,10.76,142.79,142.73,2.4517]
[1723786497144,15.22,142.79,142.73,10.76]
[1723786497740,0.04592574,142.77,142.75,0.04786983]
[1723786498538,3.46543803,142.77,142.75,0.04786983]
[1723786498851,0.04592574,142.77,142.75,0.04786983]
[1723786509850,0.04592574,142.77,142.72,10.76]
[1723786509851,3.57892109,142.76,142.72,10.76]
[1723786510058,4.83722109,142.76,142.72,10.76]
[1723786511362,10.76,142.75,142.67,10.76]
[1723786511665,15.18,142.75,142.67,10.76]
[1723786512051,10.76,142.74,142.67,13.2128]
[1723786512458,0.04841836,142.72,142.69,0.04445306]
[1723786517567,0.04841836,142.72,142.69,10.80445306]
[1723786517766,0.04841836,142.72,142.71,10.76]
[1723786518164,47.98315583,142.86,142.75,2.4514]
[1723786518469,10.76,142.83,142.76,10.76]
[1723786519571,0.0511916,142.81,142.78,0.05292175]
[1723786524669,10.8111916,142.81,142.78,0.05292175]
[1723786527477,0.0511916,142.81,142.78,0.05292175]
[1723786527673,4.4711916,142.81,142.78,0.05292175]
[1723786528381,10.76,142.8,142.78,0.05292175]
[1723786531173,4.4711916,142.81,142.78,0.05292175]
[1723786537777,15.2311916,142.81,142.78,0.05292175]
[1723786540187,4.4711916,142.81,142.78,0.05292175]
[1723786540378,15.2311916,142.81,142.78,0.05292175]
[1723786543583,4.4711916,142.81,142.78,0.05292175]
[1723786543783,15.2311916,142.81,142.78,0.05292175]
[1723786545488,10.76,142.79,142.7,12.1178]
[1723786545691,10.76,142.77,142.7,12.1178]
[1723786545888,3.53824779,142.76,142.71,2.4521]
[1723786546383,15.12,142.77,142.7,14.57]
[1723786546585,10.76,142.74,142.72,0.05053779]
[1723786548081,0.05179632,142.75,142.72,0.05053779]
[1723786548291,4.41179632,142.75,142.72,0.05053779]
[1723786549788,0.05179632,142.75,142.72,0.05053779]
[1723786550187,0.05179632,142.75,142.73,10.76]
[1723786550386,0.05179632,142.75,142.74,2.4516]
[1723786550782,0.05179632,142.75,142.74,13.2116]
[1723786554897,0.05179632,142.75,142.74,2.4516]
[1723786555085,0.05179632,142.75,142.74,13.2116]
[1723786559700,0.05179632,142.75,142.72,1.34523779]
[1723786559701,0.05179632,142.75,142.72,10.81053779]
[1723786560194,0.05179632,142.75,142.72,0.05053779]
[1723786561000,4.41179632,142.75,142.72,0.05053779]
[1723786561196,15.17179632,142.75,142.67,2.4528]
[1723786561400,10.76,142.73,142.66,10.76]
[1723786561596,12.0606,142.72,142.66,10.76]
[1723786562298,5.6606,142.72,142.66,10.76]
[1723786562805,5.6606,142.72,142.68,0.04720868]
[1723786562806,0.04496163,142.7,142.68,0.04720868]
[1723786573415,0.04496163,142.7,142.68,2.49980868]
[1723786574816,0.04496163,142.7,142.68,0.04720868]
[1723786575021,0.04496163,142.7,142.68,10.80720868]
[1723786577119,0.04496163,142.7,142.68,0.04720868]
[1723786594225,0.04496163,142.7,142.68,2.49980868]
[1723786594430,0.04496163,142.7,142.68,0.04720868]
[1723786598833,0.04496163,142.7,142.68,2.49980868]
[1723786600734,0.04496163,142.7,142.68,0.04720868]
[1723786605046,10.76,142.69,142.68,0.04720868]
[1723786606048,0.04496163,142.7,142.68,0.04720868]
[1723786611840,0.04496163,142.7,142.68,2.49970868]
[1723786612548,0.04496163,142.7,142.68,0.04720868]
[1723786618847,0.04496163,142.7,142.68,2.49980868]
[1723786619948,0.04496163,142.7,142.68,0.04720868]
[1723786627966,0.04496163,142.7,142.68,2.49980868]
[1723786629965,0.04496163,142.7,142.68,0.04720868]
[1723786632572,0.04496163,142.7,142.68,2.49980868]
[1723786633366,0.04496163,142.7,142.68,0.04720868]
[1723786637572,3.50844564,142.76,142.68,10.80720868]
[1723786637764,10.76,142.8,142.73,10.76]
[1723786637970,3.9391,142.85,142.74,4.36]
[1723786638275,3.9391,142.85,142.75,2.4514]
[1723786638276,10.76,142.81,142.75,2.4514]
[1723786638477,14.29542829,142.81,142.74,4.36]
[1723786638673,3.9391,142.85,142.75,10.76]
[1723786638974,3.9391,142.85,142.74,4.36]
[1723786638975,0.04429428,142.79,142.76,0.04615608]
[1723786639174,1.2839,142.85,142.78,10.76]
[1723786639363,1.2839,142.85,142.8,2.4506]
[1723786640276,1.2839,142.85,142.78,10.76]
[1723786640277,0.04769172,142.84,142.81,6.86066608]
[1723786644877,0.04769172,142.84,142.81,0.05026608]
[1723786646179,0.04769172,142.84,142.81,2.50066608]
[1723786646972,4.36,142.91,142.83,2.4501]
[1723786647178,10.76,142.88,142.82,3.57646624]
[1723786647682,10.76,142.88,142.83,2.45]
[1723786647980,0.04920081,142.87,142.84,0.04700379]
[1723786649879,10.80920081,142.87,142.84,0.04700379]
[1723786653087,3.57571493,142.86,142.84,0.04700379]
[1723786655485,10.80920081,142.87,142.84,0.04700379]
[1723786656184,3.48470156,142.86,142.84,0.04700379]
[1723786656583,10.80920081,142.87,142.84,0.04700379]
[1723786656979,3.46299656,142.86,142.84,0.04700379]
[1723786657685,10.76,142.85,142.58,360.51191517]
[1723786657885,0.04920081,142.87,142.58,360.51191517]
[1723786657886,10.76,142.79,142.72,10.76]
[1723786658087,10.76,142.79,142.73,4.34]
[1723786658286,3.43407073,142.78,142.7,9.16336413]
[1723786658483,10.76,142.76,142.71,10.76]
[1723786658683,10.76,142.76,142.73,2.4517]
[1723786659090,0.05356987,142.75,142.73,2.4517]
[1723786659285,0.05356987,142.75,142.72,0.04916612]
[1723786659684,0.05356987,142.75,142.73,2.4518]
[1723786660082,0.05356987,142.75,142.73,10.76]
[1723786660287,15.1,142.82,142.74,10.76]
[1723786660492,4.34,142.83,142.74,10.76]
[1723786660788,15.1,142.83,142.76,10.76]
[1723786660996,10.76,142.83,142.76,10.76]
[1723786661181,10.76,142.83,142.74,4.34]
[1723786661386,10.76,142.83,142.75,10.76]
[1723786661586,0.04889548,142.8,142.78,2.4509]
[1723786661883,0.04889548,142.8,142.77,0.05322834]
[1723786663987,0.04889548,142.8,142.79,2.4508]
[1723786664687,0.04889548,142.8,142.78,2.4509]
[1723786664889,0.04889548,142.8,142.77,0.05322834]
[1723786666385,0.04889548,142.8,142.77,2.50422834]
[1723786667292,0.04889548,142.8,142.78,2.4509]
[1723786668287,0.04889548,142.8,142.79,2.4508]
[1723786668486,4.34,142.91,142.79,4.34]
[1723786668690,10.76,142.88,142.81,10.76]
[1723786669395,13.2094,142.87,142.81,2.4504]
[1723786669591,0.04635032,142.86,142.83,0.04682599]
[1723786674699,0.04635032,142.86,142.83,2.49692599]
[1723786677206,0.04635032,142.86,142.83,0.04682599]
[1723786677596,1.37235032,142.86,142.83,0.04682599]
[1723786677801,3.82205032,142.86,142.83,0.04682599]
[1723786681214,2.4499,142.85,142.83,0.04682599]
[1723786681406,26.88,142.85,142.74,28.2225]
[1723786681716,26.88,142.85,142.75,4.34]
[1723786682517,2.4502,142.83,142.78,2.4509]
[1723786683120,0.05237652,142.81,142.79,0.0484126]
[1723786683819,0.05237652,142.81,142.79,2.4991126]
[1723786685016,3.52181345,142.81,142.79,0.0484126]
[1723786685319,0.05237652,142.81,142.79,0.0484126]
[1723786687616,0.05237652,142.81,142.79,2.4991126]
[1723786689611,0.05237652,142.81,142.79,0.0484126]
[1723786690622,10.81237652,142.81,142.79,0.0484126]
[1723786691509,14.34578137,142.81,142.79,0.0484126]
[1723786691715,2.4506,142.8,142.79,0.0484126]
[1723786692918,2.4506,142.8,142.75,2.4513]
[1723786693116,2.4506,142.8,142.76,2.4513]
[1723786693316,16.79628137,142.81,142.76,2.4513]
[1723786694025,16.79628137,142.81,142.77,0.04696052]
[1723786694819,2.4506,142.8,142.77,0.04696052]
[1723786697524,0.05237652,142.81,142.77,0.04696052]
[1723786698024,3.59187963,142.81,142.77,0.04696052]
[1723786698228,0.05237652,142.81,142.77,0.04696052]
[1723786698422,2.50297652,142.81,142.77,0.04696052]
[1723786699423,2.4506,142.8,142.77,0.04696052]
[1723786700529,2.50287652,142.81,142.77,0.04696052]
[1723786701725,2.50287652,142.81,142.77,2.49806052]
[1723786704328,0.05237652,142.81,142.78,2.4509]
[1723786705829,0.05237652,142.81,142.77,0.04696052]
[1723786706325,0.05237652,142.81,142.78,2.4508]
[1723786706724,0.05237652,142.81,142.77,0.04696052]
[1723786706936,0.05237652,142.81,142.79,2.4507]
[1723786707825,0.05237652,142.81,142.77,2.49806052]
[1723786709933,2.50287652,142.81,142.77,2.49806052]
[1723786710732,0.05237652,142.81,142.78,2.4508]
[1723786714338,0.05237652,142.81,142.77,2.49796052]
[1723786714541,10.81237652,142.81,142.77,2.49796052]
[1723786714735,0.05237652,142.81,142.77,0.04696052]
[1723786715035,0.05237652,142.81,142.79,2.4507]
[1723786715427,0.05237652,142.81,142.78,2.4509]
[1723786716728,0.05237652,142.81,142.77,14.22307223]
[1723786716931,0.05237652,142.81,142.77,10.80696052]
[1723786717136,0.05237652,142.81,142.8,10.76]
[1723786717529,16.4579,142.86,142.81,2.4504]
[1723786717530,2.45,142.84,142.81,2.4504]
[1723786718537,2.4949695,142.84,142.81,2.50126188]
[1723786719934,13.2101,142.83,142.81,0.05086188]
[1723786720133,10.76,142.83,142.81,0.05086188]
[1723786720336,10.76,142.82,142.81,0.05086188]
[1723786721939,15.1,142.82,142.76,2.4512]
[1723786722243,10.76,142.8,142.76,2.4512]
[1723786722834,10.76,142.8,142.74,1.2429]
[1723786723140,0.05028513,142.78,142.76,0.04496885]
[1723786723341,13.26128513,142.78,142.76,0.04496885]
[1723786723540,10.81028513,142.78,142.76,0.04496885]
[1723786723949,2.4511,142.77,142.76,0.04496885]
[1723786724141,10.81028513,142.78,142.76,0.04496885]
[1723786724543,13.26128513,142.78,142.76,0.04496885]
[1723786724952,10.81028513,142.78,142.76,0.04496885]
[1723786725144,15.15028513,142.78,142.76,0.04496885]
[1723786725342,2.4511,142.77,142.76,0.04496885]
[1723786726847,6.84118513,142.78,142.76,0.04496885]
[1723786729149,2.50118513,142.78,142.76,0.04496885]
[1723786731747,0.05028513,142.78,142.76,0.04496885]
[1723786735247,0.05028513,142.78,142.76,10.80496885]
[1723786736251,0.05028513,142.78,142.77,2.4511]
[1723786736949,274.64157605,142.96,142.77,14.24546577]
[1723786737152,10.76,142.88,142.81,10.76]
[1723786738045,0.0488753,142.85,142.82,0.05001468]
[1723786738853,2.4986753,142.85,142.82,0.05001468]
[1723786739852,0.0488753,142.85,142.82,2.50021468]
[1723786741046,0.0488753,142.85,142.82,0.05001468]
[1723786741247,0.0488753,142.85,142.82,10.81001468]
[1723786741447,0.0488753,142.85,142.82,0.05001468]
[1723786744959,2.4985753,142.85,142.82,0.05001468]
[1723786745951,2.4985753,142.85,142.82,2.50021468]
[1723786746760,0.0488753,142.85,142.82,2.50021468]
[1723786746955,0.0488753,142.85,142.83,2.45]
[1723786748459,0.0488753,142.85,142.83,13.21]
[1723786748661,0.0488753,142.85,142.83,2.45]
[1723786754372,0.0488753,142.85,142.84,2.4499]
[1723786756462,0.0488753,142.85,142.83,6.79]
[1723786759768,0.0488753,142.85,142.84,13.2099]
[1723786765472,4.34,142.95,142.91,2.4486]
[1723786765473,2.4481,142.95,142.91,2.4486]
[1723786765776,10.76,142.97,142.9,10.76]
[1723786765978,10.76,142.97,142.9,14.34126344]
[1723786766180,10.76,142.97,142.9,3.58126344]
[1723786766672,10.76,142.97,142.92,0.04788579]
[1723786766673,2.49411951,142.95,142.92,0.04788579]
[1723786769666,2.49411951,142.95,142.92,2.49638579]
[1723786769875,2.49411951,142.95,142.92,0.04788579]
[1723786771780,2.4482,142.94,142.92,0.04788579]
[1723786773073,2.49411951,142.95,142.92,0.04788579]
[1723786775472,0.04601951,142.95,142.92,2.49628579]
[1723786775682,0.04601951,142.95,142.92,0.04788579]
[1723786776078,2.49421951,142.95,142.92,0.04788579]
[1723786776279,10.76,142.93,142.63,64.66788784]
[1723786776477,10.76,142.93,142.82,4.34]
[1723786776784,2.6448,142.94,142.89,2.4489]
[1723786777386,2.49772098,142.93,142.9,2.4943855]
[1723786777982,0.04932098,142.93,142.9,2.4943855]
[1723786778980,0.04932098,142.93,142.9,0.0454855]
[1723786779181,0.04932098,142.93,142.9,10.8054855]
[1723786779982,0.04932098,142.93,142.9,2.4942855]
[1723786780484,2.49772098,142.93,142.9,0.0454855]
[1723786780685,0.04932098,142.93,142.9,0.0454855]
[1723786781477,3.79022098,142.93,142.9,0.0454855]
[1723786782776,2.4485,142.92,142.9,0.0454855]
[1723786785087,3.79022098,142.93,142.9,0.0454855]
[1723786785287,0.04932098,142.93,142.9,13.2542855]
[1723786785691,0.04932098,142.93,142.92,10.76]
[1723786786286,0.04932098,142.93,142.92,13.2085]
[1723786787193,0.04932098,142.93,142.9,0.0454855]
[1723786787389,0.04932098,142.93,142.91,4.34]
[1723786787687,0.04932098,142.93,142.91,6.7887]
[1723786788093,0.04932098,142.93,142.91,17.5487]
[1723786788587,0.04932098,142.93,142.92,2.4485]
[1723786790085,0.04932098,142.93,142.92,6.7885]
[1723786798192,0.04932098,142.93,142.92,2.4485]
[1723786799595,0.04932098,142.93,142.91,17.5486]
[1723786800197,0.04932098,142.93,142.9,2.4942855]
[1723786800395,0.04932098,142.93,142.9,13.2542855]
[1723786800604,1.35892098,142.93,142.9,0.0454855]
[1723786800793,1.35892098,142.93,142.9,10.8054855]
[1723786800999,1.35892098,142.93,142.92,10.76]
[1723786802793,1.35892098,142.93,142.9,2.4942855]
[1723786802994,1.35892098,142.93,142.9,13.2542855]
[1723786803296,3.80732098,142.93,142.9,13.2542855]
[1723786804001,1.35892098,142.93,142.9,13.2542855]
[1723786804403,0.04932098,142.93,142.92,10.76]
[1723786805298,2.522,142.98,142.92,15.1]
[1723786805600,2.522,142.98,142.94,10.76]
[1723786805797,4.9696,142.98,142.94,10.76]
[1723786805998,4.9696,142.98,142.94,13.2081]
[1723786806496,0.04509833,142.97,142.95,0.05085274]
[1723786807292,14.34200468,142.96,142.87,4.34]
[1723786807498,14.34200468,142.96,142.89,10.76]
[1723786807697,14.34200468,142.96,142.9,2.4488]
[1723786807698,2.4483,142.94,142.9,2.4488]
[1723786807893,10.76,142.93,142.87,4.34]
[1723786808107,10.76,142.9,142.83,14.25213109]
[1723786808301,6.7891,142.89,142.84,2.4498]
[1723786808498,0.04687978,142.88,142.86,10.76]
[1723786809602,4.38687978,142.88,142.86,10.76]
[1723786809799,4.38687978,142.88,142.85,0.04615153]
[1723786809800,4.38687978,142.88,142.87,13.2094]
[1723786810001,4.38687978,142.88,142.86,10.76]
[1723786810808,4.38687978,142.88,142.85,10.80615153]
[1723786811009,4.38687978,142.88,142.85,0.04615153]
[1723786811208,4.36,142.87,142.85,0.04615153]
[1723786811410,0.04687978,142.88,142.85,0.04615153]
[1723786811610,4.36,142.87,142.85,0.04615153]
[1723786813714,2.4496,142.86,142.85,0.04615153]
[1723786814008,10.76,142.86,142.78,10.76]
[1723786814212,10.76,142.85,142.78,10.76]
[1723786814714,5.6433,142.84,142.81,10.76]
[1723786814915,5.68957139,142.84,142.81,10.80686168]
[1723786815708,8.13947139,142.84,142.81,10.80686168]
[1723786816910,2.4501,142.83,142.81,0.04686168]
[1723786818208,4.36,142.82,142.81,0.04686168]
[1723786819808,2.4501,142.83,142.81,0.04686168]
[1723786820009,4.36,142.82,142.81,0.04686168]
[1723786821308,2.49627139,142.84,142.81,0.04686168]
[1723786821513,4.36,142.83,142.81,0.04686168]
[1723786822210,4.36,142.83,142.82,2.4502]
[1723786822810,0.04627139,142.84,142.81,13.25716168]
[1723786823013,0.04627139,142.84,142.81,2.49716168]
[1723786823209,0.04627139,142.84,142.81,0.04686168]
[1723786823807,10.80627139,142.84,142.81,0.04686168]
[1723786824611,0.04627139,142.84,142.81,0.04686168]
[1723786825711,4.40627139,142.84,142.81,10.80686168]
[1723786826214,4.40627139,142.84,142.81,13.25716168]
[1723786826917,0.04627139,142.84,142.82,2.4502]
[1723786827509,0.04627139,142.84,142.83,2.4501]
[1723786829816,0.04627139,142.84,142.81,0.04686168]
[1723786831821,2.49617139,142.84,142.81,2.49716168]
[1723786832328,2.4501,142.83,142.81,0.04686168]
[1723786833720,2.49617139,142.84,142.81,0.04686168]
[1723786834521,2.49617139,142.84,142.81,2.49726168]
[1723786834725,6.85617139,142.84,142.81,2.49726168]
[1723786835521,4.40627139,142.84,142.81,2.49726168]
[1723786835833,0.04627139,142.84,142.81,0.04686168]
[1723786836120,0.04627139,142.84,142.83,10.76]
[1723786836515,0.04627139,142.84,142.83,2.4501]
[1723786839321,0.04627139,142.84,142.81,0.04686168]
[1723786839821,0.04627139,142.84,142.81,2.49726168]
[1723786840027,0.04627139,142.84,142.81,0.04686168]
[1723786840419,2.49617139,142.84,142.81,0.04686168]
[1723786842825,2.4501,142.83,142.81,0.04686168]
[1723786843427,2.49617139,142.84,142.81,0.04686168]
[1723786844020,0.04627139,142.84,142.81,2.49716168]
[1723786845835,0.04627139,142.84,142.81,0.04686168]
[1723786846234,2.4502,142.83,142.81,0.04686168]
[1723786846824,2.49627139,142.84,142.81,0.04686168]
[1723786847028,0.04627139,142.84,142.81,0.04686168]
[1723786848737,0.04627139,142.84,142.81,2.49716168]
[1723786849529,0.04627139,142.84,142.82,2.4502]
[1723786849734,0.04627139,142.84,142.81,0.04686168]
[1723786850134,0.04627139,142.84,142.82,2.4501]
[1723786851233,0.04627139,142.84,142.83,2.4501]
[1723786854836,26.91627139,142.84,142.81,0.04686168]
[1723786856339,2.4502,142.83,142.81,0.04686168]
[1723786857728,2.4502,142.83,142.79,2.4507]
[1723786857929,2.4502,142.83,142.71,26.87]
[1723786857930,4.36,142.82,142.71,26.87]
[1723786858136,26.87,142.81,142.7,7.7517]
[1723786858333,2.4512,142.77,142.72,2.4519]
[1723786858535,26.87,142.81,142.72,2.4519]
[1723786858829,4.36,142.8,142.71,26.87]
[1723786859035,2.50030949,142.78,142.75,0.05340248]
[1723786859637,0.04930949,142.78,142.75,0.05340248]
[1723786861436,0.04930949,142.78,142.75,2.50480248]
[1723786861837,0.04930949,142.78,142.75,0.05340248]
[1723786862846,0.04930949,142.78,142.76,2.4513]
[1723786863240,0.04930949,142.78,142.75,0.05340248]
[1723786863241,0.04930949,142.78,142.75,26.92340248]
[1723786863446,0.04930949,142.78,142.77,2.4511]
[1723786863841,0.04930949,142.78,142.77,13.2111]
[1723786864039,2.4501,142.83,142.79,2.4506]
[1723786865143,0.05148226,142.82,142.8,0.04501658]
[1723786865550,0.05148226,142.82,142.8,2.49561658]
[1723786870949,0.05148226,142.82,142.8,0.04501658]
[1723786871854,0.05148226,142.82,142.8,2.49561658]
[1723786872745,0.05148226,142.82,142.81,2.4504]
[1723786873347,4.36,142.91,142.83,2.45]
[1723786873549,26.88,142.9,142.83,2.45]
[1723786874052,2.4495,142.87,142.83,2.45]
[1723786874453,0.04825908,142.86,142.84,0.05228535]
[1723786876952,2.49785908,142.86,142.84,0.05228535]
[1723786879044,0.04825908,142.86,142.84,0.05228535]
[1723786879251,26.88,142.93,142.84,0.05228535]
[1723786879450,26.88,142.93,142.85,4.36]
[1723786879752,26.88,142.93,142.85,5.626]
[1723786879956,26.88,142.93,142.85,36.08847325]
[1723786880151,1.275,142.98,142.87,26.88]
[1723786880350,26.88,142.98,142.89,26.88]
[1723786880553,4.36,143.0,142.9,4.36]
[1723786880757,0.04446158,142.94,142.91,0.04616798]
[1723786881148,26.88,142.95,142.89,4.36]
[1723786881351,2.50145328,142.94,142.91,0.05226845]
[1723786882253,2.4484,142.93,142.91,0.05226845]
[1723786882951,2.4485,142.92,142.91,0.05226845]
[1723786883558,2.4492,142.88,142.85,4.36]
[1723786884855,2.49884416,142.88,142.85,4.40427802]
[1723786885549,2.4494,142.87,142.85,0.04427802]
[1723786885750,0.04964416,142.88,142.85,0.04427802]
[1723786887862,2.49894416,142.88,142.85,0.04427802]
[1723786889958,0.04964416,142.88,142.85,0.04427802]
[1723786890959,10.79964416,142.88,142.85,0.04427802]
[1723786891363,2.4496,142.86,142.85,0.04427802]
[1723786891760,13.1996,142.86,142.85,0.04427802]
[1723786891961,2.4496,142.86,142.85,0.04427802]
[1723786892269,26.88,142.86,142.79,4.36]
[1723786892469,26.88,142.86,142.77,2.451]
[1723786892768,26.88,142.86,142.76,4.36]
[1723786892769,1.2318,142.85,142.76,4.36]
[1723786892965,26.88,142.83,142.76,6.8112]
[1723786893361,26.88,142.83,142.76,4.36]
[1723786893362,2.4505,142.81,142.76,4.36]
[1723786893567,2.49935836,142.81,142.78,0.04658348]
[1723786893762,0.04885836,142.81,142.78,0.04658348]
[1723786894364,2.4507,142.8,142.78,0.04658348]
[1723786894672,0.04885836,142.81,142.78,0.04658348]
[1723786895863,2.4506,142.8,142.78,0.04658348]
[1723786896467,2.4507,142.8,142.78,0.04658348]
[1723786901872,2.4508,142.79,142.78,0.04658348]
[1723786904074,6.9108,142.79,142.78,0.04658348]
[1723786906878,2.4511,142.77,142.73,2.4517]
[1723786907780,0.05287119,142.76,142.74,0.04625562]
[1723786910168,2.4514,142.75,142.74,0.04625562]
[1723786911479,6.9114,142.75,142.74,0.04625562]
[1723786911672,2.4519,142.73,142.69,2.4524]
[1723786912875,0.04930221,142.72,142.7,0.05155702]
[1723786913476,2.4521,142.71,142.7,0.05155702]
[1723786913685,0.04930221,142.72,142.7,0.05155702]
[1723786913981,13.26140221,142.72,142.7,0.05155702]